[Event "EYTCC Open U18 2022"]
[Site "Thessaloniki"]
[Date "2022.07.14"]
[Round "3.22"]
[White "Kristoferitsch, Daniel"]
[Black "Marn, Jan"]
[Result "0-1"]
[ECO "D85"]
[WhiteElo "2312"]
[BlackElo "2282"]
[Annotator "ChessBase"]
[PlyCount "92"]
[EventDate "2022.07.12"]
[EventType "team-tourn"]
[EventCountry "GRE"]
[SourceTitle "playchess.com"]
[Source "ChessBase"]
[SourceQuality "1"]
[WhiteTeam "Austria"]
[BlackTeam "Slovenia"]
[WhiteTeamCountry "AUT"]
[BlackTeamCountry "SLO"]
[TimeControl "40/5400+30:1800+30"]

1. d4 {[%emt 0:00:05]} Nf6 {[%emt 0:00:07]} 2. c4 {[%emt 0:00:08]} g6 {[%emt 0:00:04]} 3. Nc3 {[%emt 0:00:08]} d5 {[%emt 0:00:04]} 4. cxd5 {[%emt 0:00:07]} Nxd5 {[%emt 0:00:04]} 5. e4 {[%emt 0:00:10]} Nxc3 {[%emt 0:00:05]} 6. bxc3 {[%emt 0:00:06]} Bg7 {[%emt 0:00:05]} 7. Nf3 {[%emt 0:00:12]} c5 {[%emt 0:00:08]} 8. h3 {[%emt 0:00:06]} O-O {[%emt 0:10:03]} 9. Be2 {[%emt 0:00:08]} Nc6 {[%emt 0:01:35]} 10. Be3 {[%emt 0:00:11]} cxd4 {[%emt 0:01:29]} 11. cxd4 {[%emt 0:00:08]} Qa5+ {[%emt 0:00:03]} 12. Bd2 {[%emt 0:00:13]} Qa3 {[%emt 0:00:13]} 13. d5 Ne5 {[%emt 0:03:52]} 14. O-O {[%emt 0:00:18]} Bd7 {[%emt 0:11:11]} 15. Rb1 {[%emt 0:12:32]} Qxa2 {[%emt 0:10:51]} 16. Rxb7 {[%emt 0:01:45]} Ba4 {[%emt 0:00:10]} 17. Qe1 {[%emt 0:01:43]} Rfb8 {[%emt 0:16:55]} 18. Qb1 {[%emt 0:37:22]} Qxb1 {[%emt 0:03:06]} 19. Rfxb1 {[%emt 0:00:12]} Nxf3+ {[%emt 0:00:49]} 20. Bxf3 {[%emt 0:00:26]} Be5 {[%emt 0:00:28]} 21. g3 {[%emt 0:04:01]} Bc2 {[%emt 0:13:39]} 22. R1b5 {[%emt 0:14:43]} a6 {[%emt 0:06:10]} 23. R5b6 {[%emt 0:01:38]} Rxb7 {[%emt 0:12:52]} 24. Rxb7 {[%emt 0:00:03]} Kf8 {[%emt 0:00:06]} 25. Bb4 {[%emt 0:11:47]} Bd6 {[%emt 0:00:17]} 26. Ba5 {[%emt 0:00:49]} f6 {[%emt 0:01:57]} 27. Kf1 Rc8 {[%emt 0:03:57]} 28. Ke1 {[%emt 0:05:08]} Ba4 {[%emt 0:00:43]} 29. Be2 Rc1+ {[%emt 0:00:38]} 30. Kd2 {[%emt 0:01:23]} Rc2+ {[%emt 0:00:04]} 31. Ke1 {[%emt 0:03:12]} Rc1+ {[%emt 0:00:10]} 32. Kd2 {[%emt 0:00:07]} Rc2+ {[%emt 0:00:03]} 33. Ke1 {[%emt 0:00:48]} Ra2 {[%emt 0:00:05]} 34. Bc4 {[%emt 0:03:43]} Ra1+ {[%emt 0:00:42]} 35. Ke2 {[%emt 0:00:18]} Bc2 {[%emt 0:02:23]} 36. Bc3 {[%emt 0:00:50]} Rh1 {[%emt 0:00:04]} 37. Kf3 {[%emt 0:02:11]} Rc1 38. Be2 {[%emt 0:00:02]} Bxe4+ {[%emt 0:01:51]} 39. Kxe4 {[%emt 0:00:00]} Rxc3 {[%emt 0:00:06]} 40. Bxa6 Bc5 {[%emt 0:00:00]} 41. Rb2 {[%emt 0:07:40]} f5+ {[%emt 0:04:31]} 42. Ke5 {[%emt 0:00:50]} Kf7 {[%emt 0:00:05]} 43. Bf1 {[%emt 0:09:20]} Rf3 {[%emt 0:10:30]} 44. Rc2 {[%emt 0:04:43]} Bxf2 {[%emt 0:00:42]} 45. Bg2 {[%emt 0:00:15]} Bxg3+ {[%emt 0:00:05]} 46. Kd4 {[%emt 0:00:16]} Ra3 {[%emt 0:00:19]} 0-1

[Event "EYTCC Open U18 2022"]
[Site "Thessaloniki"]
[Date "2022.07.14"]
[Round "3.23"]
[White "Nareks, Matic"]
[Black "Borrmann, Laurenz"]
[Result "0-1"]
[ECO "B10"]
[WhiteElo "2221"]
[BlackElo "2274"]
[Annotator "ChessBase"]
[PlyCount "80"]
[EventDate "2022.07.12"]
[EventType "team-tourn"]
[EventCountry "GRE"]
[SourceTitle "playchess.com"]
[Source "ChessBase"]
[SourceQuality "1"]
[WhiteTeam "Slovenia"]
[BlackTeam "Austria"]
[WhiteTeamCountry "SLO"]
[BlackTeamCountry "AUT"]
[TimeControl "40/5400+30:1800+30"]

1. e4 {[%emt 0:00:07]} c6 {[%emt 0:00:13]} 2. Nf3 {[%emt 0:00:06]} d5 {[%emt 0:00:14]} 3. Nc3 {[%emt 0:00:05]} dxe4 {[%emt 0:00:18]} 4. Nxe4 {[%emt 0:00:06]} Nf6 {[%emt 0:00:08]} 5. Qe2 {[%emt 0:00:05]} Nxe4 {[%emt 0:00:09]} 6. Qxe4 {[%emt 0:00:05]} Nd7 {[%emt 0:06:45]} 7. d4 {[%emt 0:00:34]} Nf6 {[%emt 0:00:16]} 8. Qd3 {[%emt 0:00:47]} g6 {[%emt 0:00:40]} 9. Bf4 {[%emt 0:03:26]} Bf5 {[%emt 0:09:53]} 10. Qd2 {[%emt 0:09:10]} Qb6 {[%emt 0:05:27]} 11. O-O-O {[%emt 0:04:26]} Nd5 {[%emt 0:04:07]} 12. Bc4 {[%emt 0:08:00]} h5 {[%emt 0:03:56]} 13. Bg5 {[%emt 0:21:28]} O-O-O {[%emt 0:13:18]} 14. Rhe1 {[%emt 0:03:59]} f6 {[%emt 0:00:54]} 15. Be3 {[%emt 0:01:54]} g5 {[%emt 0:06:38]} 16. Bd3 {[%emt 0:07:45]} Bd7 {[%emt 0:06:45]} 17. c4 {[%emt 0:03:42]} Nxe3 {[%emt 0:01:54]} 18. fxe3 {[%emt 0:00:25]} Qc7 {[%emt 0:05:42]} 19. Qf2 {[%emt 0:08:24]} Bh6 {[%emt 0:07:20]} 20. g3 {[%emt 0:02:20]} Rhf8 {[%emt 0:03:12]} 21. Kb1 {[%emt 0:00:52]} Kb8 {[%emt 0:01:12]} 22. Nd2 {[%emt 0:02:01]} f5 {[%emt 0:01:15]} 23. Qe2 {[%emt 0:03:51]} g4 {[%emt 0:00:49]} 24. Nb3 {[%emt 0:00:58]} e5 {[%emt 0:01:49]} 25. c5 {[%emt 0:04:12]} f4 {[%emt 0:06:53]} 26. gxf4 {[%emt 0:04:02]} exf4 {[%emt 0:00:13]} 27. exf4 {[%emt 0:01:57]} Bxf4 {[%emt 0:01:14]} 28. Rh1 {[%emt 0:00:49]} h4 {[%emt 0:01:53]} 29. d5 {[%emt 0:02:23]} cxd5 {[%emt 0:00:41]} 30. c6 {[%emt 0:00:30]} Qxc6 {[%emt 0:02:41]} 31. Nd4 {[%emt 0:00:07]} Qf6 {[%emt 0:00:58]} 32. Bb5 {[%emt 0:00:41]} Bc8 {[%emt 0:00:22]} 33. Rhf1 {[%emt 0:01:21]} Qe5 {[%emt 0:00:49]} 34. Qf2 {[%emt 0:02:07]} g3 {[%emt 0:02:44]} 35. hxg3 {[%emt 0:00:17]} hxg3 {[%emt 0:00:16]} 36. Qc2 {[%emt 0:01:29]} Be3 {[%emt 0:01:47]} 37. Nf3 {[%emt 0:00:55]} Qh5 {[%emt 0:00:55]} 38. Qg2 {[%emt 0:00:34]} Qh3 {[%emt 0:00:57]} 39. Qe2 {[%emt 0:00:08]} d4 {[%emt 0:00:41]} 40. Rh1 {[%emt 0:00:00]} Qf5+ {[%emt 0:00:00]} 0-1

[Event "EYTCC Open U18 2022"]
[Site "Thessaloniki"]
[Date "2022.07.14"]
[Round "3.24"]
[White "Pilshofer, Paul"]
[Black "Lavrencic, Matic"]
[Result "1/2-1/2"]
[ECO "A46"]
[WhiteElo "2223"]
[BlackElo "2151"]
[Annotator "ChessBase"]
[PlyCount "61"]
[EventDate "2022.07.12"]
[EventType "team-tourn"]
[EventCountry "GRE"]
[SourceTitle "playchess.com"]
[Source "ChessBase"]
[SourceQuality "1"]
[WhiteTeam "Austria"]
[BlackTeam "Slovenia"]
[WhiteTeamCountry "AUT"]
[BlackTeamCountry "SLO"]
[TimeControl "40/5400+30:1800+30"]

1. d4 {[%emt 0:00:06]} Nf6 {[%emt 0:00:09]} 2. Nf3 {[%emt 0:00:15]} d5 {[%emt 0:00:09]} 3. g3 {[%emt 0:00:23]} c5 {[%emt 0:00:27]} 4. Bg2 {[%emt 0:00:25]} cxd4 {[%emt 0:00:57]} 5. O-O {[%emt 0:00:25]} h6 {[%emt 0:00:03]} 6. b3 {[%emt 0:06:18]} e6 {[%emt 0:00:46]} 7. Bb2 {[%emt 0:00:49]} Bc5 {[%emt 0:00:26]} 8. Nxd4 {[%emt 0:06:35]} O-O {[%emt 0:00:18]} 9. e3 {[%emt 0:06:12]} e5 {[%emt 0:01:40]} 10. Nf3 {[%emt 0:05:14]} e4 {[%emt 0:01:46]} 11. Nd4 {[%emt 0:01:01]} Re8 {[%emt 0:01:23]} 12. Nc3 {[%emt 0:05:54]} Nbd7 {[%emt 0:02:43]} 13. Nde2 {[%emt 0:11:23]} Ne5 {[%emt 0:09:23]} 14. Nf4 {[%emt 0:15:37]} Bg4 {[%emt 0:01:50]} 15. Qd2 {[%emt 0:02:22]} Nf3+ {[%emt 0:09:49]} 16. Bxf3 {[%emt 0:00:34]} Bxf3 {[%emt 0:00:07]} 17. Ncxd5 {[%emt 0:05:54]} Nxd5 {[%emt 0:00:59]} 18. Nxd5 {[%emt 0:04:04]} Qg5 {[%emt 0:08:30]} 19. h3 {[%emt 0:09:22]} Red8 {[%emt 0:02:01]} 20. c4 {[%emt 0:02:09]} Bd6 {[%emt 0:01:16]} 21. Qc3 {[%emt 0:03:16]} f6 {[%emt 0:08:54]} 22. Nf4 {[%emt 0:03:47]} Qf5 {[%emt 0:02:33]} 23. Kh2 {[%emt 0:01:21]} h5 {[%emt 0:02:47]} 24. c5 {[%emt 0:04:26]} Bxc5 {[%emt 0:02:51]} 25. Qc4+ {[%emt 0:00:01]} Kh7 {[%emt 0:00:22]} 26. Qe6 {[%emt 0:04:34]} Qxe6 {[%emt 0:02:15]} 27. Nxe6 {[%emt 0:00:01]} Rdc8 {[%emt 0:02:03]} 28. Nxc5 {[%emt 0:00:29]} Rxc5 {[%emt 0:00:05]} 29. Rac1 {[%emt 0:00:08]} Rac8 {[%emt 0:03:20]} 30. Rxc5 {[%emt 0:01:29]} Rxc5 {[%emt 0:00:03]} 31. Rc1 1/2-1/2

[Event "EYTCC Open U18 2022"]
[Site "Thessaloniki"]
[Date "2022.07.14"]
[Round "3.25"]
[White "Filip, Andrei"]
[Black "Risteski, Emil"]
[Result "1/2-1/2"]
[ECO "E19"]
[WhiteElo "2344"]
[BlackElo "2405"]
[Annotator "ChessBase"]
[PlyCount "52"]
[EventDate "2022.07.12"]
[EventType "team-tourn"]
[EventCountry "GRE"]
[SourceTitle "playchess.com"]
[Source "ChessBase"]
[SourceQuality "1"]
[WhiteTeam "Romania"]
[BlackTeam "Macedonia"]
[WhiteTeamCountry "ROU"]
[BlackTeamCountry "MKD"]
[TimeControl "40/5400+30:1800+30"]

1. d4 {[%emt 0:00:05]} Nf6 {[%emt 0:00:43]} 2. c4 {[%emt 0:00:16]} e6 {[%emt 0:01:50]} 3. Nf3 {[%emt 0:00:41]} b6 {[%emt 0:00:06]} 4. g3 {[%emt 0:01:36]} Bb7 {[%emt 0:00:06]} 5. Bg2 {[%emt 0:00:00]} Be7 {[%emt 0:00:23]} 6. O-O {[%emt 0:00:15]} O-O {[%emt 0:00:23]} 7. Nc3 {[%emt 0:02:13]} Ne4 {[%emt 0:02:56]} 8. Qc2 {[%emt 0:00:17]} Nxc3 {[%emt 0:01:59]} 9. Qxc3 {[%emt 0:00:50]} d6 {[%emt 0:03:22]} 10. b3 {[%emt 0:10:09]} Nd7 {[%emt 0:05:08]} 11. Bb2 {[%emt 0:00:07]} c5 {[%emt 0:06:15]} 12. Rfd1 {[%emt 0:13:16]} Nf6 {[%emt 0:07:25]} 13. Ne1 {[%emt 0:10:35]} Bxg2 {[%emt 0:00:44]} 14. Nxg2 {[%emt 0:03:35]} cxd4 {[%emt 0:08:23]} 15. Qxd4 {[%emt 0:00:44]} Qc7 {[%emt 0:01:43]} 16. Ne3 {[%emt 0:09:38]} Rfd8 {[%emt 0:08:13]} 17. Rd2 {[%emt 0:08:32]} Qc5 {[%emt 0:04:46]} 18. Qf4 {[%emt 0:11:28]} Qh5 {[%emt 0:12:30]} 19. Rad1 {[%emt 0:04:32]} Qg6 {[%emt 0:00:46]} 20. Qf3 {[%emt 0:04:00]} Ne4 {[%emt 0:02:27]} 21. Rd3 {[%emt 0:00:54]} f5 {[%emt 0:01:19]} 22. Nc2 {[%emt 0:04:34]} Rf8 {[%emt 0:03:07]} 23. Qg2 {[%emt 0:01:15]} Nc5 {[%emt 0:02:45]} 24. R3d2 {[%emt 0:01:30]} Ne4 {[%emt 0:00:08]} 25. Rd3 {[%emt 0:00:19]} Nc5 {[%emt 0:00:58]} 26. R3d2 {[%emt 0:01:22]} Ne4 {[%emt 0:06:31]} 1/2-1/2

[Event "EYTCC Open U18 2022"]
[Site "Thessaloniki"]
[Date "2022.07.14"]
[Round "3.26"]
[White "Veljanoski, Andrej"]
[Black "Antonica, Dragos-Andrei"]
[Result "1-0"]
[ECO "C15"]
[WhiteElo "2162"]
[BlackElo "2355"]
[Annotator "ChessBase"]
[PlyCount "79"]
[EventDate "2022.07.12"]
[EventType "team-tourn"]
[EventCountry "GRE"]
[SourceTitle "playchess.com"]
[Source "ChessBase"]
[SourceQuality "1"]
[WhiteTeam "Macedonia"]
[BlackTeam "Romania"]
[WhiteTeamCountry "MKD"]
[BlackTeamCountry "ROU"]
[TimeControl "40/5400+30:1800+30"]

1. e4 {[%emt 0:00:11]} e6 {[%emt 0:00:06]} 2. d4 {[%emt 0:00:07]} d5 {[%emt 0:00:02]} 3. Nc3 {[%emt 0:01:11]} Bb4 {[%emt 0:01:16]} 4. Nge2 {[%emt 0:00:50]} dxe4 {[%emt 0:01:42]} 5. a3 {[%emt 0:00:08]} Bxc3+ {[%emt 0:01:04]} 6. Nxc3 {[%emt 0:00:06]} Nc6 {[%emt 0:00:38]} 7. d5 {[%emt 0:02:22]} exd5 {[%emt 0:15:07]} 8. Qxd5 {[%emt 0:00:42]} Qe7 {[%emt 0:17:16]} 9. Bg5 {[%emt 0:16:09]} Nf6 {[%emt 0:09:08]} 10. Bxf6 {[%emt 0:07:50]} Qxf6 {[%emt 0:01:37]} 11. Qxe4+ {[%emt 0:01:05]} Be6 {[%emt 0:03:53]} 12. O-O-O {[%emt 0:08:34]} O-O {[%emt 0:04:53]} 13. Bd3 {[%emt 0:00:28]} Qh6+ {[%emt 0:03:32]} 14. f4 {[%emt 0:03:28]} Rae8 {[%emt 0:09:30]} 15. Rd2 {[%emt 0:07:12]} Bg4 {[%emt 0:03:12]} 16. Qa4 {[%emt 0:01:35]} Rd8 {[%emt 0:04:11]} 17. h3 {[%emt 0:08:27]} a6 {[%emt 0:08:20]} 18. Rf1 {[%emt 0:05:01]} Bc8 {[%emt 0:00:59]} 19. Qe4 {[%emt 0:01:11]} Rfe8 {[%emt 0:02:10]} 20. Qf3 {[%emt 0:00:14]} Nd4 {[%emt 0:01:52]} 21. Qf2 {[%emt 0:01:11]} c5 {[%emt 0:00:49]} 22. Ne2 {[%emt 0:09:36]} Ne6 {[%emt 0:05:01]} 23. Rdd1 {[%emt 0:06:42]} b5 {[%emt 0:01:09]} 24. Kb1 {[%emt 0:02:44]} Qf6 {[%emt 0:00:41]} 25. g4 {[%emt 0:02:24]} c4 {[%emt 0:01:09]} 26. Be4 {[%emt 0:01:14]} Qe7 {[%emt 0:00:47]} 27. Nc3 {[%emt 0:00:58]} Nf8 {[%emt 0:02:36]} 28. Qb6 {[%emt 0:02:36]} Rxd1+ {[%emt 0:01:18]} 29. Rxd1 {[%emt 0:00:05]} h5 {[%emt 0:00:27]} 30. gxh5 {[%emt 0:01:24]} Bxh3 {[%emt 0:00:32]} 31. h6 {[%emt 0:00:12]} Qf6 {[%emt 0:00:31]} 32. Qe3 {[%emt 0:01:46]} Bf5 {[%emt 0:00:26]} 33. hxg7 {[%emt 0:00:45]} Ng6 {[%emt 0:00:21]} 34. Qf3 {[%emt 0:01:33]} Bxe4 {[%emt 0:00:43]} 35. Nxe4 {[%emt 0:00:05]} Qc6 {[%emt 0:00:28]} 36. Re1 {[%emt 0:00:23]} Kxg7 {[%emt 0:00:31]} 37. f5 {[%emt 0:01:01]} Ne5 {[%emt 0:00:25]} 38. f6+ {[%emt 0:01:03]} Kf8 {[%emt 0:00:16]} 39. Qf4 {[%emt 0:00:35]} Re6 {[%emt 0:00:44]} 40. Ng5 {[%emt 0:00:00]} 1-0

[Event "EYTCC Open U18 2022"]
[Site "Thessaloniki"]
[Date "2022.07.14"]
[Round "3.27"]
[White "Antal, Hunor-Zoltan"]
[Black "Jordanov, Mihail"]
[Result "1-0"]
[ECO "D47"]
[WhiteElo "2263"]
[BlackElo "2158"]
[Annotator "ChessBase"]
[PlyCount "105"]
[EventDate "2022.07.12"]
[EventType "team-tourn"]
[EventCountry "GRE"]
[SourceTitle "playchess.com"]
[Source "ChessBase"]
[SourceQuality "1"]
[WhiteTeam "Romania"]
[BlackTeam "Macedonia"]
[WhiteTeamCountry "ROU"]
[BlackTeamCountry "MKD"]
[TimeControl "40/5400+30:1800+30"]

1. d4 {[%emt 0:00:15]} d5 {[%emt 0:00:12]} 2. Nf3 {[%emt 0:00:17]} Nf6 {[%emt 0:00:10]} 3. c4 {[%emt 0:00:10]} c6 {[%emt 0:00:13]} 4. e3 {[%emt 0:00:07]} e6 {[%emt 0:00:32]} 5. Nc3 {[%emt 0:00:02]} Nbd7 {[%emt 0:00:18]} 6. Bd3 {[%emt 0:00:11]} dxc4 {[%emt 0:00:38]} 7. Bxc4 {[%emt 0:00:08]} b5 {[%emt 0:00:16]} 8. Be2 {[%emt 0:00:02]} Bd6 {[%emt 0:03:57]} 9. e4 {[%emt 0:02:22]} e5 {[%emt 0:15:53]} 10. d5 {[%emt 0:07:13]} cxd5 {[%emt 0:01:36]} 11. Nxb5 {[%emt 0:07:22]} Bb4+ {[%emt 0:09:40]} 12. Bd2 {[%emt 0:00:23]} Bxd2+ {[%emt 0:04:11]} 13. Qxd2 {[%emt 0:01:48]} O-O {[%emt 0:07:59]} 14. exd5 {[%emt 0:01:11]} Bb7 {[%emt 0:03:49]} 15. Nc3 {[%emt 0:06:09]} e4 {[%emt 0:00:46]} 16. Ng5 {[%emt 0:00:47]} Nc5 {[%emt 0:07:26]} 17. O-O {[%emt 0:23:21]} h6 {[%emt 0:12:03]} 18. b4 {[%emt 0:15:49]} hxg5 {[%emt 0:02:51]} 19. bxc5 {[%emt 0:00:15]} Nxd5 {[%emt 0:01:17]} 20. Nxe4 {[%emt 0:06:02]} Nf4 {[%emt 0:04:51]} 21. Bf3 {[%emt 0:00:24]} Qxd2 {[%emt 0:02:40]} 22. Nxd2 {[%emt 0:00:15]} Bxf3 {[%emt 0:00:23]} 23. Nxf3 {[%emt 0:01:45]} Rac8 {[%emt 0:00:49]} 24. Nxg5 {[%emt 0:00:31]} Rxc5 {[%emt 0:00:10]} 25. Ne4 {[%emt 0:01:26]} Rc2 {[%emt 0:01:05]} 26. g3 {[%emt 0:00:21]} Re8 {[%emt 0:03:11]} 27. Nd6 {[%emt 0:01:49]} Ne2+ {[%emt 0:00:24]} 28. Kg2 {[%emt 0:00:41]} Rd8 {[%emt 0:01:26]} 29. Ne4 {[%emt 0:04:00]} f6 {[%emt 0:04:27]} 30. Rfd1 {[%emt 0:05:13]} Rxd1 {[%emt 0:00:52]} 31. Rxd1 {[%emt 0:00:01]} Rxa2 {[%emt 0:00:40]} 32. Rd8+ {[%emt 0:00:02]} Kf7 {[%emt 0:03:22]} 33. Rd7+ {[%emt 0:00:01]} Kg6 {[%emt 0:02:50]} 34. Nc5 {[%emt 0:01:19]} a5 {[%emt 0:01:10]} 35. Ra7 {[%emt 0:02:41]} Nc3 {[%emt 0:00:41]} 36. Ne6 {[%emt 0:01:39]} a4 {[%emt 0:01:06]} 37. Rxg7+ {[%emt 0:03:09]} Kh6 {[%emt 0:01:28]} 38. Rc7 {[%emt 0:00:49]} Ne4 {[%emt 0:00:40]} 39. Kf3 {[%emt 0:01:34]} Nxf2 {[%emt 0:01:22]} 40. Nf8 {[%emt 0:00:00]} Nh3 {[%emt 0:00:00]} 41. Rh7+ {[%emt 0:01:38]} Kg5 {[%emt 0:02:35]} 42. Rxh3 {[%emt 0:00:13]} f5 {[%emt 0:03:06]} 43. Rh7 {[%emt 0:00:24]} Ra3+ {[%emt 0:00:46]} 44. Ke2 {[%emt 0:00:13]} Kf6 {[%emt 0:00:50]} 45. Kf2 {[%emt 0:02:56]} Rd3 {[%emt 0:05:13]} 46. Nd7+ {[%emt 0:00:25]} Kg6 {[%emt 0:05:04]} 47. Ne5+ {[%emt 0:00:02]} Kxh7 {[%emt 0:00:04]} 48. Nxd3 {[%emt 0:00:07]} a3 {[%emt 0:00:17]} 49. Nb4 {[%emt 0:00:05]} Kg6 {[%emt 0:00:48]} 50. Kf3 {[%emt 0:00:02]} Kf6 {[%emt 0:02:03]} 51. Kf4 {[%emt 0:00:02]} Kg6 {[%emt 0:00:45]} 52. h4 {[%emt 0:00:01]} Kf6 {[%emt 0:00:21]} 53. h5 {[%emt 0:00:01]} 1-0

[Event "EYTCC Open U18 2022"]
[Site "Thessaloniki"]
[Date "2022.07.14"]
[Round "3.28"]
[White "Zlatkov, Anton"]
[Black "Cnejev, Vladimir-Alexandru"]
[Result "0-1"]
[ECO "C54"]
[WhiteElo "2149"]
[BlackElo "2172"]
[Annotator "ChessBase"]
[PlyCount "92"]
[EventDate "2022.07.12"]
[EventType "team-tourn"]
[EventCountry "GRE"]
[SourceTitle "playchess.com"]
[Source "ChessBase"]
[SourceQuality "1"]
[WhiteTeam "Macedonia"]
[BlackTeam "Romania"]
[WhiteTeamCountry "MKD"]
[BlackTeamCountry "ROU"]
[TimeControl "40/5400+30:1800+30"]

1. e4 {[%emt 0:00:11]} e5 {[%emt 0:00:05]} 2. Nf3 {[%emt 0:00:10]} Nc6 {[%emt 0:00:06]} 3. Bc4 {[%emt 0:00:08]} Bc5 {[%emt 0:00:07]} 4. c3 {[%emt 0:00:13]} Nf6 {[%emt 0:00:06]} 5. d3 {[%emt 0:00:10]} a6 {[%emt 0:00:10]} 6. Bb3 {[%emt 0:00:41]} Ba7 {[%emt 0:00:15]} 7. O-O {[%emt 0:00:55]} d6 {[%emt 0:00:17]} 8. Nbd2 {[%emt 0:00:47]} O-O {[%emt 0:03:08]} 9. h3 {[%emt 0:00:25]} Ne7 {[%emt 0:00:08]} 10. Re1 {[%emt 0:03:14]} Ng6 {[%emt 0:00:41]} 11. Nf1 {[%emt 0:00:24]} h6 {[%emt 0:00:11]} 12. Ng3 {[%emt 0:00:31]} Re8 {[%emt 0:00:05]} 13. d4 {[%emt 0:01:31]} b5 {[%emt 0:00:18]} 14. Nh2 {[%emt 0:26:46]} Bb7 {[%emt 0:15:59]} 15. Nf5 {[%emt 0:21:07]} Bxe4 {[%emt 0:37:11]} 16. Rxe4 {[%emt 0:08:44]} Nxe4 {[%emt 0:00:14]} 17. Qh5 {[%emt 0:09:15]} d5 {[%emt 0:02:41]} 18. Ng4 {[%emt 0:08:27]} Nf6 {[%emt 0:27:16]} 19. Ngxh6+ {[%emt 0:01:24]} Kf8 {[%emt 0:00:05]} 20. Qg5 {[%emt 0:01:12]} exd4 {[%emt 0:01:47]} 21. Bf4 {[%emt 0:03:43]} Ne4 {[%emt 0:04:17]} 22. Qh5 {[%emt 0:00:52]} Nf6 {[%emt 0:01:02]} 23. Qg5 {[%emt 0:00:29]} Re4 {[%emt 0:01:50]} 24. Bg3 {[%emt 0:03:52]} gxh6 {[%emt 0:00:58]} 25. Qxh6+ Ke8 {[%emt 0:00:06]} 26. cxd4 {[%emt 0:01:20]} Qd7 {[%emt 0:02:44]} 27. Qg5 {[%emt 0:01:43]} Nh7 {[%emt 0:00:36]} 28. Ng7+ {[%emt 0:00:22]} Kf8 {[%emt 0:00:04]} 29. Qh6 {[%emt 0:00:01]} Kg8 {[%emt 0:00:13]} 30. Nh5 {[%emt 0:00:13]} Bxd4 {[%emt 0:00:40]} 31. Rd1 {[%emt 0:00:31]} Bh8 {[%emt 0:01:22]} 32. Rxd5 {[%emt 0:00:59]} Re1+ {[%emt 0:01:07]} 33. Kh2 {[%emt 0:00:10]} Qe6 {[%emt 0:00:36]} 34. Rg5 {[%emt 0:02:28]} Nxg5 {[%emt 0:00:25]} 35. Bxe6 {[%emt 0:00:01]} Nxe6 {[%emt 0:00:06]} 36. Qd2 {[%emt 0:01:46]} Rb1 {[%emt 0:00:34]} 37. f4 {[%emt 0:01:27]} Bd4 {[%emt 0:00:31]} 38. h4 {[%emt 0:02:14]} Rd8 {[%emt 0:00:28]} 39. Qe2 {[%emt 0:00:37]} Bg1+ 40. Kh3 Bb6 {[%emt 0:00:00]} 41. Qe4 {[%emt 0:09:09]} Rh1+ {[%emt 0:06:57]} 42. Kg4 {[%emt 0:00:08]} Rf1 {[%emt 0:08:24]} 43. Nf6+ {[%emt 0:02:17]} Kg7 {[%emt 0:01:02]} 44. Nd5 {[%emt 0:00:09]} Rd1 {[%emt 0:04:31]} 45. h5 {[%emt 0:07:08]} R8xd5 {[%emt 0:00:42]} 46. hxg6 {[%emt 0:00:06]} f5+ {[%emt 0:00:00]} 0-1

[Event "EYTCC Open U18 2022"]
[Site "Thessaloniki"]
[Date "2022.07.14"]
[Round "3.29"]
[White "Magalakis, Stefanos"]
[Black "Bilych, Olexiy"]
[Result "0-1"]
[ECO "A06"]
[WhiteElo "2181"]
[BlackElo "2365"]
[Annotator "ChessBase"]
[PlyCount "124"]
[EventDate "2022.07.12"]
[EventType "team-tourn"]
[EventCountry "GRE"]
[SourceTitle "playchess.com"]
[Source "ChessBase"]
[SourceQuality "1"]
[WhiteTeam "Greece"]
[BlackTeam "Ukraine"]
[WhiteTeamCountry "GRE"]
[BlackTeamCountry "UKR"]
[TimeControl "40/5400+30:1800+30"]

1. Nf3 d5 2. g3 Nd7 3. d4 Nb6 4. Bg2 Bf5 5. O-O e6 6. Nbd2 Nf6 7. c4 dxc4 8. Nh4 c6 9. Nxf5 exf5 10. e3 Qd7 11. Qc2 Qe6 12. Rd1 Bb4 13. Bf1 Bxd2 14. Bxd2 h5 15. b3 h4 16. bxc4 hxg3 17. hxg3 Ng4 18. Bg2 Nxc4 19. e4 fxe4 20. Bxe4 Nxd2 21. Rxd2 Kf8 22. Qc5+ Kg8 23. Re2 Qh6 24. Bg2 Qh2+ 25. Kf1 Rh5 26. Qc2 g6 27. Re4 Nf6 28. Re5 Rd8 29. Qc5 Rxe5 30. Qxe5 Kg7 31. Qf4 Qh5 32. Re1 Qb5+ 33. Kg1 Qb4 34. Rd1 c5 35. Qf3 Rxd4 36. Rc1 Rd7 37. a3 Qd4 38. Bh3 Re7 39. Rd1 Qe5 40. Qb3 b6 41. Bf1 Ng4 42. Qf3 Nf6 43. a4 Qe4 44. Qc3 Qxa4 45. Rd6 Re6 46. Rxe6 fxe6 47. Qe5 Qd7 48. Bc4 Qd1+ 49. Kg2 Qd4 50. Qxe6 Qe4+ 51. f3 Qxe6 52. Bxe6 Ne8 53. Kf2 Kf6 54. Bd7 Nd6 55. f4 b5 56. Ke3 a5 57. Kd3 a4 58. Kc2 a3 59. Kc3 b4+ 60. Kb3 c4+ 61. Ka2 Ne4 62. Kb1 b3 0-1

[Event "EYTCC Open U18 2022"]
[Site "Thessaloniki"]
[Date "2022.07.14"]
[Round "3.30"]
[White "Prokofiev, Valentyn"]
[Black "Georgiadis, Athanasios Kat"]
[Result "1-0"]
[ECO "E97"]
[WhiteElo "2286"]
[BlackElo "1689"]
[Annotator "ChessBase"]
[PlyCount "59"]
[EventDate "2022.07.12"]
[EventType "team-tourn"]
[EventCountry "GRE"]
[SourceTitle "playchess.com"]
[Source "ChessBase"]
[SourceQuality "1"]
[WhiteTeam "Ukraine"]
[BlackTeam "Greece"]
[WhiteTeamCountry "UKR"]
[BlackTeamCountry "GRE"]
[TimeControl "40/5400+30:1800+30"]

1. d4 {[%emt 0:00:02]} Nf6 {[%emt 0:00:04]} 2. c4 {[%emt 0:00:04]} g6 {[%emt 0:00:07]} 3. Nc3 {[%emt 0:00:03]} Bg7 {[%emt 0:00:05]} 4. e4 {[%emt 0:00:04]} d6 {[%emt 0:00:05]} 5. Nf3 {[%emt 0:00:04]} O-O {[%emt 0:00:10]} 6. Be2 {[%emt 0:00:03]} e5 {[%emt 0:00:16]} 7. O-O {[%emt 0:00:04]} Nc6 {[%emt 0:00:53]} 8. d5 {[%emt 0:00:04]} Ne7 {[%emt 0:00:04]} 9. b4 {[%emt 0:00:02]} a5 {[%emt 0:00:56]} 10. Ba3 {[%emt 0:00:07]} axb4 {[%emt 0:02:04]} 11. Bxb4 {[%emt 0:00:04]} Nd7 {[%emt 0:02:29]} 12. a4 {[%emt 0:00:27]} Bh6 {[%emt 0:04:36]} 13. Ne1 {[%emt 0:03:31]} f5 {[%emt 0:02:34]} 14. Nd3 {[%emt 0:02:32]} Nf6 {[%emt 0:07:04]} 15. exf5 {[%emt 0:03:17]} gxf5 {[%emt 0:03:28]} 16. f4 {[%emt 0:00:27]} e4 {[%emt 0:01:40]} 17. Ne1 {[%emt 0:00:20]} Bg7 {[%emt 0:05:18]} 18. Nc2 {[%emt 0:03:16]} Nd7 {[%emt 0:11:46]} 19. Ra3 {[%emt 0:02:21]} Nc5 {[%emt 0:02:23]} 20. a5 {[%emt 0:12:52]} Re8 {[%emt 0:17:55]} 21. Nb5 {[%emt 0:00:57]} Bd7 {[%emt 0:06:14]} 22. Rg3 {[%emt 0:00:44]} Ng6 {[%emt 0:07:35]} 23. Bh5 {[%emt 0:00:26]} Kf7 {[%emt 0:03:40]} 24. Bxc5 {[%emt 0:05:31]} dxc5 {[%emt 0:04:53]} 25. d6 {[%emt 0:00:13]} Bxb5 {[%emt 0:00:24]} 26. Qd5+ {[%emt 0:00:02]} Kf6 {[%emt 0:01:28]} 27. Ne3 {[%emt 0:02:27]} Qxd6 {[%emt 0:04:07]} 28. Bxg6 {[%emt 0:02:37]} hxg6 {[%emt 0:01:26]} 29. Rxg6+ {[%emt 0:00:07]} Kxg6 {[%emt 0:01:09]} 30. Qxf5+ {[%emt 0:00:06]} 1-0